bitfinex-derivatives/quotes_ETHF0:USTF0_20250112
["timestamp","ask_amount","ask_price","bid_price","bid_amount"]
[1736678509935,0.15311305,3241.5,3241.3,1.70128445]
[1736678510137,0.36916305,3241.5,3241.4,0.21605]
[1736678510342,0.21605,3241.4,3241.3,1.70128445]
[1736678517547,0.21605,3241.5,3241.4,0.21605]
[1736678517844,0.21605,3241.4,3241.3,1.70128445]
[1736678518247,0.21605,3241.5,3241.3,1.70128445]
[1736678519046,0.37322356,3241.5,3241.3,1.70128445]
[1736678519744,0.15717356,3241.5,3241.3,1.70128445]
[1736678519946,0.21605,3241.4,3241.3,0.4559]
[1736678521656,0.21605,3241.4,3241.3,0.67196]
[1736678522349,0.15717356,3241.5,3241.3,0.67196]
[1736678522553,0.37322356,3241.5,3241.3,0.67196]
[1736678522755,0.37322356,3241.5,3241.3,0.4559]
[1736678522953,0.37322356,3241.5,3241.4,0.21605]
[1736678523145,0.37322356,3241.5,3241.3,0.4559]
[1736678523346,0.37322356,3241.5,3241.3,0.67195]
[1736678523755,0.37322356,3241.5,3241.4,0.21605]
[1736678524258,0.15717356,3241.5,3241.4,0.21605]
[1736678524448,0.37321356,3241.5,3241.4,0.21605]
[1736678525157,0.21605,3241.4,3241.3,1.70128445]
[1736678526856,0.21605,3241.4,3241.3,6.53962127]
[1736678527455,0.15717356,3241.5,3241.3,6.53962127]
[1736678527756,0.37322356,3241.5,3241.3,6.53962127]
[1736678529657,0.15717356,3241.5,3241.3,6.32357127]
[1736678529854,0.15717356,3241.5,3241.4,0.21605]
[1736678530453,0.21604,3241.6,3241.5,0.21604]
[1736678531761,0.21604,3241.6,3241.4,0.21605]
[1736678531959,0.37079712,3241.6,3241.3,1.48523445]
[1736678532159,0.37079712,3241.6,3241.4,0.21605]
[1736678532358,0.37079712,3241.6,3241.3,1.48523445]
[1736678532661,0.37079712,3241.6,3241.4,0.21604]
[1736678534059,0.15475712,3241.6,3241.5,0.21604]
[1736678534260,0.37079712,3241.6,3241.5,0.21604]
[1736678536163,0.15475712,3241.6,3241.3,3.6637]
[1736678536463,0.21605,3241.4,3241.3,3.6637]
[1736678539864,0.21605,3241.4,3241.3,0.4559]
[1736678540065,0.21605,3241.4,3241.3,0.67196]
[1736678540959,0.21605,3241.4,3241.3,0.4559]
[1736678541263,1.59195,3241.5,3241.3,0.67196]
[1736678541762,0.21605,3241.4,3241.3,0.67196]
[1736678542462,1.3759,3241.5,3241.3,0.4559]
[1736678542666,0.15475712,3241.6,3241.4,1.02933445]
[1736678542667,0.37079712,3241.6,3241.4,1.02933445]
[1736678542870,0.37079712,3241.6,3241.5,0.21604]
[1736678543769,0.15475712,3241.6,3241.5,0.21604]
[1736678544664,0.37079712,3241.6,3241.5,0.21604]
[1736678545165,0.37079712,3241.6,3241.5,7.1348407]
[1736678545666,0.21604,3241.6,3241.5,7.1348407]
[1736678546064,0.37186249,3241.6,3241.5,7.1348407]
[1736678546564,0.37186249,3241.6,3241.5,0.21604]
[1736678548070,0.15582249,3241.6,3241.5,0.21604]
[1736678548263,0.9198,3242.4,3241.5,1.76012]
[1736678548460,0.65499,3242.4,3242.3,1.24532445]
[1736678548764,0.456,3242.6,3242.5,0.21598]
[1736678548962,0.21596,3242.8,3242.5,1.02933445]
[1736678549167,0.21596,3242.8,3242.7,1.24529445]
[1736678552464,1.3778,3243.0,3242.7,1.02933445]
[1736678552669,1.59374,3243.0,3242.8,0.21595]
[1736678552970,1.59374,3243.0,3242.8,0.65745]
[1736678554672,0.21595,3242.9,3242.8,0.4415]
[1736678554971,1.59375,3243.0,3242.8,0.65746]
[1736678558169,0.21595,3242.9,3242.8,0.65746]
[1736678558470,0.21595,3242.9,3242.8,0.4415]
[1736678559879,1.59375,3243.0,3242.8,0.65745]
[1736678560571,0.21595,3242.9,3242.8,0.4415]
[1736678560970,1.59375,3243.0,3242.8,0.65746]
[1736678562376,0.21595,3242.9,3242.8,0.4415]
[1736678562778,0.36703206,3242.9,3242.8,0.4415]
[1736678564483,0.15108206,3242.9,3242.5,4.23713445]
[1736678564683,0.21596,3242.8,3242.6,0.21597]
[1736678564878,0.21596,3242.8,3242.7,0.21596]
[1736678565684,0.36703206,3242.9,3242.7,0.21596]
[1736678566885,0.36703206,3242.9,3242.8,0.21596]
[1736678567186,0.15108206,3242.9,3242.8,0.21596]
[1736678569176,0.002,3243.0,3242.8,1.02933445]
[1736678569387,0.45152749,3243.7,3242.9,5.45713445]
[1736678569682,4.23713445,3244.4,3243.6,1.02933445]
[1736678569887,0.21587,3244.1,3243.9,1.24521445]
[1736678570185,4.23713445,3244.4,3243.9,1.02933445]
[1736678570487,0.21588,3244.0,3243.9,1.02933445]
[1736678571183,0.21587,3244.1,3243.9,1.24521445]
[1736678572788,0.21587,3244.1,3243.9,1.02933445]
[1736678573384,0.21587,3244.1,3243.9,0.21588]
[1736678573887,3.2078,3244.4,3243.5,2.61637995]
[1736678574183,0.21588,3244.0,3243.8,0.21589]
[1736678574385,0.21587,3244.1,3243.8,0.21589]
[1736678574585,0.21588,3244.0,3243.8,0.21589]
[1736678574780,0.21587,3244.1,3243.9,0.21588]
[1736678575190,0.21586,3244.3,3244.0,0.21587]
[1736678575589,3.42366,3244.4,3244.1,0.66137]
[1736678575785,0.21586,3244.3,3244.1,0.66137]
[1736678575990,3.2078,3244.4,3244.1,0.4455]
[1736678576192,0.21586,3244.2,3244.1,0.4455]
[1736678576492,0.21586,3244.3,3244.1,0.4455]
[1736678576690,0.21586,3244.2,3244.1,0.4455]
[1736678577096,3.2078,3244.4,3244.1,0.4455]
[1736678577400,0.21586,3244.2,3244.1,0.4455]
[1736678578196,0.21588,3244.0,3243.6,0.2159]
[1736678578393,0.21588,3244.0,3243.7,0.21589]
[1736678578593,3.2078,3244.4,3243.7,0.21589]
[1736678578896,0.21588,3244.0,3243.7,0.2159]
[1736678579192,3.2078,3244.4,3243.6,0.4614]
[1736678579494,3.2078,3244.4,3243.8,2.17037995]
[1736678579894,0.21587,3244.2,3244.0,0.21587]
[1736678580194,3.2078,3244.4,3243.8,2.17037995]
[1736678580595,3.2078,3244.4,3243.9,0.944]
[1736678580793,3.2078,3244.4,3244.3,0.21586]
[1736678581295,3.2078,3244.4,3243.9,0.944]
[1736678581600,3.2078,3244.4,3244.0,0.21587]
[1736678582093,0.21586,3244.2,3244.1,0.4749]
[1736678585190,0.21586,3244.2,3244.1,0.69077]
[1736678585992,0.21586,3244.2,3244.1,0.4749]
[1736678589999,3.2078,3244.4,3243.8,2.17037995]
[1736678590299,0.21588,3243.9,3243.8,2.63247995]
[1736678590598,0.21588,3243.9,3243.8,0.4621]
[1736678593403,0.21588,3243.9,3243.7,0.2159]
[1736678593597,0.2159,3243.8,3243.7,0.4588]
[1736678593903,0.2159,3243.8,3243.7,0.6747]
[1736678594306,0.2159,3243.8,3243.7,0.4588]
[1736678594792,0.2159,3243.8,3243.7,0.6747]
[1736678594996,0.2159,3243.7,3243.6,0.2159]
[1736678595403,0.2159,3243.7,3243.6,1.24334165]
[1736678596302,0.2159,3243.7,3243.6,1.70794165]
[1736678602316,0.465,3244.0,3243.6,1.49204165]
[1736678602503,0.21589,3243.8,3243.7,0.21589]
[1736678606103,0.21589,3243.9,3243.8,0.21589]
[1736678607514,0.21589,3243.9,3243.8,1.24333165]
[1736678609311,0.465,3244.0,3243.8,1.02744165]
[1736678609513,0.68088,3244.0,3243.9,0.21588]
[1736678610109,0.93228006,3244.1,3243.8,1.02744165]
[1736678610313,0.00148006,3244.1,3244.0,1.24332165]
[1736678610518,0.00148006,3244.1,3244.0,1.70882165]
[1736678610727,0.00148006,3244.1,3244.0,2.18352165]
[1736678623037,0.1585902,3244.1,3244.0,2.18352165]
[1736678635436,0.00148006,3244.1,3244.0,2.18352165]
[1736678636036,0.15602475,3244.1,3244.0,2.18352165]
[1736678638237,0.15602475,3244.1,3243.7,3.2078]
[1736678638443,0.21592,3243.3,3243.2,3.42373]
[1736678638643,0.21592,3243.3,3243.2,3.2078]
[1736678639033,0.21593,3243.2,3243.1,4.85426984]
[1736678639438,1.4007,3243.5,3243.0,1.02744165]
[1736678639648,0.69794,3243.1,3243.0,1.02744165]
[1736678639843,0.69794,3243.1,3243.0,1.24338165]
[1736678641142,0.482,3243.1,3243.0,1.24338165]
[1736678642846,0.69794,3243.1,3243.0,1.02744165]
[1736678644248,0.69794,3243.1,3243.0,1.24338165]
[1736678646753,0.482,3243.1,3243.0,1.24338165]
[1736678650351,1.13461,3243.5,3243.4,0.21592]
[1736678650654,1.3954,3243.5,3243.4,1.24336165]
[1736678653543,1.55312174,3243.5,3243.4,1.24336165]
[1736678654246,1.76903174,3243.5,3243.4,1.24336165]
[1736678654556,1.55312174,3243.5,3243.4,1.24336165]
[1736678654960,1.76903174,3243.5,3243.4,1.24336165]
[1736678658451,0.37363174,3243.5,3243.4,1.24336165]
[1736678660259,0.15772174,3243.5,3243.4,1.24336165]
[1736678661853,0.37363174,3243.5,3243.4,1.02744165]
[1736678662252,0.37363174,3243.5,3243.4,1.24336165]
[1736678664258,0.37363174,3243.5,3243.4,1.02744165]
[1736678664763,0.37363174,3243.5,3243.4,1.47734165]
[1736678665462,0.21591,3243.5,3243.4,1.47734165]
[1736678666962,0.37106729,3243.5,3243.4,1.47734165]
[1736678667356,0.37235187,3243.5,3243.4,1.47734165]
[1736678671467,0.37235187,3243.5,3243.4,1.94994165]
[1736678680481,0.21719458,3243.5,3243.4,1.94994165]
[1736678681375,0.37257509,3243.5,3243.4,1.94994165]
[1736678682883,0.37257509,3243.5,3243.4,0.9225]
[1736678683076,0.15666509,3243.5,3243.2,1.02744165]
[1736678683281,0.21592,3243.3,3243.2,0.446]
[1736678684384,0.65912,3243.3,3243.2,1.47344165]
[1736678695781,0.21594,3243.1,3243.0,0.9176]
[1736678695979,0.21594,3243.1,3243.0,2.40184165]
[1736678700688,1.02744165,3243.2,3242.9,3.2078]
[1736678700894,0.66184,3243.0,3242.9,3.2078]
[1736678702096,0.21594,3243.0,3242.9,4.45119165]
[1736678703889,0.15122566,3243.3,3242.9,4.23524165]
[1736678704093,0.21594,3243.2,3243.1,1.24337165]
[1736678705091,0.36715566,3243.3,3243.2,0.21593]
[1736678705291,0.36715566,3243.3,3243.2,0.4737]
[1736678705486,0.36715566,3243.3,3243.2,0.9349]
[1736678708000,0.15122566,3243.3,3243.2,1.15083]
[1736678709093,0.15122566,3243.3,3243.2,6.00509984]
[1736678710502,0.21719458,3243.5,3243.4,0.21592]
[1736678710700,0.00128458,3243.5,3243.4,1.24336165]
[1736678712896,0.15714111,3243.5,3243.4,1.24336165]
[1736678722499,0.15714111,3243.5,3243.4,1.67796165]
[1736678725402,0.00128458,3243.5,3243.4,1.67796165]
[1736678726299,0.15739136,3243.5,3243.4,1.67796165]
[1736678726704,0.00128458,3243.5,3243.4,1.67796165]
[1736678728909,0.00128458,3243.5,3243.4,1.92872818]
[1736678734405,3.42367,3244.1,3243.4,1.92872818]
[1736678734606,3.42367,3244.1,3244.0,1.24332165]
[1736678734811,3.2078,3244.1,3244.0,1.24332165]
[1736678735505,0.9558,3244.2,3244.0,2.0548833]
[1736678735710,0.4794,3244.2,3244.1,3.42367]
[1736678741912,0.4794,3244.2,3244.1,0.21587]
[1736678742116,0.63382841,3244.2,3244.1,0.21587]
[1736678742415,0.84968841,3244.2,3244.1,0.21587]
[1736678743917,0.63382841,3244.2,3244.1,0.21587]
[1736678750526,0.15442841,3244.2,3244.1,1.13147]
[1736678751026,0.15442841,3244.2,3244.1,0.21587]
[1736678755529,0.68346,3244.3,3244.2,0.21586]
[1736678756228,0.84128457,3244.3,3244.2,0.21586]
[1736678757429,0.62542457,3244.3,3244.2,1.24330165]
[1736678759319,0.15782457,3244.3,3244.2,1.24330165]
[1736678759529,0.15782457,3244.3,3244.2,2.19770165]
[1736678759733,0.15782457,3244.3,3244.2,2.63360165]
[1736678761532,0.37368457,3244.3,3244.2,0.21586]
[1736678762634,0.15782457,3244.3,3244.1,1.02744165]
[1736678762834,1.16076,3244.2,3244.1,1.24331165]
[1736678763232,0.9449,3244.2,3244.1,1.24331165]
[1736678763434,1.16076,3244.2,3244.1,1.24331165]
[1736678763630,0.68976,3244.2,3244.1,1.24331165]
[1736678765533,0.21588,3244.0,3243.9,1.02744165]
[1736678765924,0.21588,3244.0,3243.9,1.24332165]
[1736678767234,0.21588,3244.0,3243.9,1.02744165]
[1736678767637,0.21588,3244.0,3243.9,1.24332165]
[1736678768546,0.21588,3244.0,3243.9,1.02744165]
[1736678768838,0.21588,3244.0,3243.9,1.24332165]
[1736678769435,0.21588,3244.0,3243.7,3.2078]
[1736678769641,1.24333165,3243.8,3243.7,3.2078]
[1736678770051,0.66209,3243.8,3243.7,3.2078]
[1736678772337,1.12069,3243.8,3243.7,3.2078]
[1736678774649,0.2159,3243.7,3243.6,0.6902]
[1736678775337,0.9048,3243.8,3243.6,0.4743]
[1736678775540,1.1207,3243.8,3243.7,0.2159]
[1736678775740,0.2159,3243.7,3243.6,0.6902]
[1736678776544,0.9048,3243.8,3243.7,0.2159]
[1736678776845,0.15076616,3244.0,3243.9,0.21588]
[1736678777149,0.36664616,3244.0,3243.9,0.21588]
[1736678777848,0.21588,3243.9,3243.8,0.21589]
[1736678778048,0.15076616,3244.0,3243.7,4.23524165]
[1736678778351,0.21589,3243.9,3243.8,0.21589]
[1736678778849,0.21589,3243.8,3243.7,3.42369]
[1736678779045,0.21589,3243.8,3243.7,4.45113165]
[1736678779252,0.21589,3243.9,3243.8,0.21589]
[1736678780252,0.15076616,3244.0,3243.9,0.21588]
[1736678780552,0.36664616,3244.0,3243.9,1.24332165]
[1736678780749,0.15076616,3244.0,3243.9,1.24332165]
[1736678781651,0.36664616,3244.0,3243.9,1.02744165]
[1736678781852,0.21589,3243.8,3243.7,1.24333165]
[1736678782351,0.21589,3243.8,3243.7,1.02744165]
[1736678783749,0.8932,3243.9,3243.5,3.2078]
[1736678783951,0.2159,3243.6,3243.5,3.2078]
[1736678787452,0.21591,3243.5,3243.4,1.02744165]
[1736678788654,0.22600488,3243.5,3243.4,1.02744165]
[1736678789346,0.67380488,3243.5,3243.4,1.02744165]
[1736678791252,0.67380488,3243.5,3243.4,1.24336165]
[1736678791454,0.22600488,3243.5,3243.4,1.24336165]
[1736678793863,0.22600488,3243.5,3243.4,1.02744165]
[1736678794361,0.22600488,3243.5,3243.4,1.24336165]
[1736678795253,0.01009488,3243.5,3243.4,1.24336165]
[1736678795659,0.22600488,3243.5,3243.4,1.24336165]
[1736678797661,0.01009488,3243.5,3243.4,1.24336165]
[1736678801169,0.22600488,3243.5,3243.4,0.21592]
[1736678801466,0.22600488,3243.5,3243.4,1.24336165]
[1736678802170,0.22600488,3243.5,3243.4,1.02744165]
[1736678802370,0.22600488,3243.5,3243.4,1.24336165]
[1736678804166,0.38270289,3243.5,3243.4,1.24336165]
[1736678806978,0.84160289,3243.5,3243.4,1.02744165]
[1736678812174,0.84160289,3243.5,3243.4,1.24336165]
[1736678813971,4.04940289,3243.5,3243.4,1.24336165]
[1736678815471,0.68490488,3243.5,3243.4,1.24336165]
[1736678815876,3.89270488,3243.5,3243.4,1.24336165]
[1736678818077,0.68490488,3243.5,3243.4,1.24336165]
[1736678818282,3.89270488,3243.5,3243.4,1.24336165]
[1736678818473,4.04393194,3243.5,3243.4,1.24336165]
[1736678818980,3.58503194,3243.5,3243.4,1.24336165]
[1736678820479,3.58503194,3243.5,3243.4,0.21592]
[1736678820678,0.21592,3243.4,3243.3,0.21592]
[1736678821072,3.36912194,3243.5,3243.4,0.21592]
[1736678821073,3.58503194,3243.5,3243.4,0.21592]
[1736678821274,3.36912194,3243.5,3243.4,1.24336165]
[1736678822582,3.58503194,3243.5,3243.4,1.24336165]
[1736678822786,3.36912194,3243.5,3243.4,1.24336165]
[1736678823282,3.58503194,3243.5,3243.4,1.24336165]
[1736678825787,3.36912194,3243.5,3243.4,1.24336165]
[1736678825977,0.01009488,3243.5,3243.4,5.66716165]
[1736678826287,0.45237037,3244.4,3244.3,0.21586]
[1736678826484,0.45237037,3244.4,3244.3,4.45110165]
[1736678826884,0.65213,3244.8,3244.5,0.21584]
[1736678827084,0.65213,3244.8,3244.6,0.21583]
[1736678827580,0.4363,3244.8,3244.6,0.21583]
[1736678827782,0.21583,3244.7,3244.6,0.21583]
[1736678827981,0.65213,3244.8,3244.6,0.21584]
[1736678828184,0.21583,3244.7,3244.6,0.21584]
[1736678829287,0.21583,3244.7,3244.5,1.71368165]
[1736678829483,0.21584,3244.6,3244.5,1.49784165]
[1736678829783,0.21584,3244.5,3244.4,0.4535]
[1736678829983,1.10064,3244.5,3244.4,0.4535]
[1736678830184,0.8848,3244.5,3244.2,0.68626]
[1736678830388,0.21585,3244.4,3244.2,0.68626]
[1736678831590,0.21585,3244.4,3244.3,1.24330165]
[1736678831785,1.10065,3244.5,3244.4,0.21585]
[1736678832086,0.21585,3244.5,3244.4,0.21585]
[1736678832587,0.21585,3244.5,3244.3,1.24329165]
[1736678833289,0.37161861,3244.7,3244.3,1.02744165]
[1736678833491,0.37161861,3244.7,3244.6,0.21584]
[1736678833894,0.37161861,3244.7,3244.6,0.65254]
[1736678834089,0.21583,3244.7,3244.6,0.4367]
[1736678834683,0.21583,3244.7,3244.6,0.905]
[1736678838889,0.37000632,3244.7,3244.6,0.905]
[1736678843288,0.37000632,3244.7,3244.6,0.4367]
[1736678843892,0.21585,3244.4,3244.3,1.02744165]
[1736678844490,0.21587,3244.1,3244.0,0.4683]
[1736678844695,0.21587,3244.1,3244.0,1.95594165]
[1736678845294,0.21587,3244.1,3244.0,2.65411165]
[1736678846296,0.4512,3244.4,3244.0,2.65411165]
[1736678846600,0.21587,3244.2,3244.1,0.21587]
[1736678847191,3.2078,3244.6,3244.0,1.4108]
[1736678847400,0.21585,3244.4,3244.3,0.21585]
[1736678847699,0.21585,3244.4,3244.3,1.24329165]
[1736678848395,0.21585,3244.5,3244.4,0.21585]
[1736678848595,0.21585,3244.5,3244.4,1.24329165]
[1736678851297,0.21585,3244.5,3244.4,1.02744165]
[1736678851700,0.21585,3244.5,3244.4,1.49134165]
[1736678857404,0.21585,3244.5,3244.4,1.70719165]
[1736678857700,0.21585,3244.5,3244.4,1.49134165]
[1736678859905,0.21585,3244.5,3244.4,1.70719165]
[1736678860998,0.21585,3244.5,3244.4,1.49134165]
[1736678861200,4.1285,3244.8,3244.4,1.49134165]
[1736678861493,0.21583,3244.7,3244.6,0.21584]
[1736678861698,0.21584,3244.6,3244.5,0.69604]
[1736678861907,0.21584,3244.6,3244.5,0.4802]
[1736678862197,3.2078,3244.8,3244.4,0.4639]
[1736678862198,0.21584,3244.5,3244.4,0.4639]
[1736678862400,0.21584,3244.5,3244.4,1.49134165]
[1736678864300,0.21584,3244.5,3244.4,1.70719165]
[1736678865006,0.21584,3244.5,3244.4,1.49134165]
[1736678865207,0.21584,3244.5,3244.4,1.70719165]
[1736678867002,0.21584,3244.5,3244.4,1.49134165]
[1736678867609,0.21584,3244.5,3244.4,1.70719165]
[1736678870811,0.21584,3244.6,3244.5,0.21584]
[1736678872308,0.21584,3244.5,3244.4,1.70719165]
[1736678872810,0.21584,3244.5,3244.4,1.49134165]
[1736678873013,0.21584,3244.5,3244.4,0.4639]
[1736678876013,0.21584,3244.5,3244.4,0.67975]
[1736678876214,0.21584,3244.5,3244.4,0.4639]
[1736678877211,0.21584,3244.5,3244.4,5.29987844]
[1736678877610,0.21584,3244.5,3244.4,5.51572844]
[1736678879712,0.36871089,3244.5,3244.4,5.51572844]
[1736678881112,0.15287089,3244.5,3244.4,5.51572844]
[1736678881715,0.15287089,3244.5,3244.4,3.88755]
[1736678882114,0.36871089,3244.5,3244.4,1.70719165]
[1736678882320,0.15287089,3244.5,3244.4,1.70719165]
[1736678886020,0.15287089,3244.5,3244.4,8.57027536]
[1736678887021,0.15287089,3244.5,3244.4,15.85047604]
[1736678887714,0.36871089,3244.5,3244.4,15.85047604]
[1736678888219,0.15287089,3244.5,3244.4,15.85047604]
[1736678889110,0.15287089,3244.5,3244.4,8.57027536]
[1736678890524,0.21584,3244.6,3244.5,0.21584]
[1736678891425,0.65213,3244.7,3244.6,0.21584]
[1736678891725,0.65213,3244.7,3244.6,1.24328165]
[1736678893629,0.80294864,3244.7,3244.6,1.24328165]
[1736678894427,0.58711864,3244.7,3244.6,1.24328165]
[1736678894826,0.80294864,3244.7,3244.6,1.24328165]
[1736678896729,0.58711864,3244.7,3244.6,1.24328165]
[1736678897831,0.80294864,3244.7,3244.6,1.24328165]
[1736678900534,0.58711864,3244.7,3244.6,1.24328165]
[1736678900734,0.80294864,3244.7,3244.6,1.24328165]
[1736678903735,0.15081864,3244.7,3244.6,1.24328165]
[1736678903933,0.15081864,3244.7,3244.6,1.69118165]
[1736678905043,0.15081864,3244.7,3244.6,15.8238174]
[1736678905440,3.2078,3245.1,3245.0,0.21581]
[1736678905741,0.2158,3245.2,3245.0,1.24325165]
[1736678906143,0.1578996,3245.1,3245.0,1.24325165]
[1736678907650,0.1578996,3245.1,3245.0,6.09072275]
[1736678908047,0.1578996,3245.1,3245.0,6.55172275]
[1736678908252,0.1578996,3245.1,3245.0,7.5791644]
[1736678908548,0.1578996,3245.1,3245.0,6.55172275]
[1736678909049,0.1578996,3245.1,3245.0,9.75952275]
[1736678909649,0.1578996,3245.1,3245.0,10.7869644]
[1736678909854,0.21575,3245.9,3245.7,0.21576]
[1736678910055,0.21575,3245.9,3245.8,1.49374165]
[1736678910457,0.21575,3245.9,3245.8,0.4663]
[1736678910853,3.42355,3246.0,3245.8,1.70949165]
[1736678911060,0.21575,3245.9,3245.8,1.49374165]
[1736678919060,4.1291,3246.0,3245.7,0.4773]
[1736678919361,0.21576,3245.7,3245.6,1.02744165]
[1736678920359,0.21578,3245.5,3245.4,1.02744165]
[1736678920568,0.2158,3245.1,3245.0,3.2078]
[1736678920866,0.2158,3245.1,3245.0,4.69014165]
[1736678930763,0.9214,3245.4,3245.0,4.69014165]
[1736678930969,0.21579,3245.4,3245.3,1.02744165]
[1736678931370,0.21579,3245.4,3245.3,40.8]
[1736678931571,0.2158,3245.2,3245.0,3.2078]
[1736678931771,0.2158,3245.2,3245.1,0.2158]
[1736678931971,0.2158,3245.2,3245.1,41.0158]
[1736678932666,0.21579,3245.4,3245.2,0.21579]
[1736678932865,0.21578,3245.4,3245.3,1.47514165]
[1736678933466,0.21578,3245.4,3245.3,1.94254165]
[1736678934168,0.15069866,3245.5,3245.4,0.21578]
[1736678934374,0.15069866,3245.5,3245.4,0.65278]
[1736678935462,0.9393,3246.0,3245.4,0.437]
[1736678935671,0.21575,3245.9,3245.8,1.02744165]
[1736678936974,0.37084614,3245.9,3245.8,1.02744165]
[1736678941472,0.37084614,3245.9,3245.8,1.24320165]
[1736678941670,0.15509614,3245.9,3245.8,1.02744165]
[1736678941975,0.15509614,3245.9,3245.8,1.24320165]
[1736678942374,0.37084614,3245.9,3245.8,1.02744165]
[1736678943171,0.15509614,3245.9,3245.8,1.02744165]
[1736678943369,0.15509614,3245.9,3245.8,1.24320165]
[1736678945879,3.2078,3246.2,3245.8,1.24320165]
[1736678945880,0.9269,3246.5,3245.8,5.2626833]
[1736678946175,0.21572,3246.4,3246.2,0.21573]
[1736678946370,0.9269,3246.5,3246.2,0.21573]
[1736678946573,0.9269,3246.5,3246.2,1.02744165]
[1736678946769,0.21572,3246.3,3246.2,1.02744165]
[1736678948069,1.02744165,3246.3,3245.4,3.2078]
[1736678948279,0.4369,3246.2,3245.9,1.02744165]
[1736678948477,0.21574,3246.0,3245.9,1.02744165]
[1736678951378,0.21574,3246.0,3245.9,1.24319165]
[1736678952081,0.21573,3246.3,3246.2,0.21573]
[1736678952272,0.9269,3246.5,3246.1,1.02744165]
[1736678952477,0.21573,3246.2,3246.1,0.21573]
[1736678953079,0.36787923,3246.3,3246.2,0.21573]
[1736678953281,0.15214923,3246.3,3246.2,3.42353]
[1736678954580,0.4693,3246.8,3246.2,3.42353]
[1736678954581,0.21571,3246.5,3246.2,3.2078]
[1736678954784,0.21571,3246.5,3246.4,0.21572]
[1736678955481,0.21571,3246.5,3246.4,2.38271346]
[1736678955684,0.4693,3246.8,3246.4,2.16699346]
[1736678955883,0.21571,3246.6,3246.5,0.21571]
[1736678956081,0.21571,3246.6,3246.5,0.68241]
[1736678957278,0.4693,3246.8,3246.5,0.4667]
[1736678957478,0.4693,3246.8,3246.7,2.16699346]
[1736678957786,3.2078,3247.2,3246.7,2.16699346]
[1736678957984,3.2078,3247.2,3247.0,2.38266346]
[1736678958281,3.2078,3247.2,3246.7,2.16699346]
[1736678958482,0.21569,3246.8,3246.7,2.38269346]
[1736678958680,3.2078,3247.2,3246.7,2.38269346]
[1736678958881,0.2157,3246.6,3246.5,0.4667]
[1736678959282,0.2157,3246.6,3246.4,2.38270346]
[1736678959488,1.16101,3246.5,3246.4,2.38270346]
[1736678960190,0.9453,3246.5,3246.4,2.38270346]
[1736678961288,0.4648,3246.5,3246.4,2.38270346]
[1736678962089,0.9026,3246.9,3246.4,2.16699346]
[1736678962386,0.2157,3246.8,3246.7,0.21569]
[1736678962585,0.9026,3246.9,3246.2,3.2078]
[1736678962792,3.2078,3246.7,3246.1,2.16699346]
[1736678962988,3.2078,3246.7,3246.0,0.4638]
[1736678963188,0.21574,3246.1,3246.0,0.67954]
[1736678963491,0.99547,3246.6,3245.5,2.16699346]
[1736678963492,0.21576,3245.8,3245.5,2.16699346]
[1736678963685,0.21577,3245.6,3245.5,2.16699346]
[1736678964083,0.21577,3245.6,3245.5,2.38277346]
[1736678964287,0.21577,3245.6,3245.5,2.16699346]
[1736678964485,0.4562,3246.0,3245.4,0.4638]
[1736678964486,0.21578,3245.5,3245.4,0.4638]
[1736678964780,0.21577,3245.6,3245.5,0.21578]
[1736678965787,3.2078,3245.9,3245.4,0.21578]
[1736678965992,0.21578,3245.5,3245.4,0.21578]
[1736678966687,0.21577,3245.6,3245.5,0.21578]
[1736678967290,3.2078,3245.9,3245.3,0.4379]
[1736678967488,0.15566901,3245.6,3245.4,0.21578]
[1736678967694,0.37143901,3245.6,3245.4,0.21578]
[1736678968089,0.37143901,3245.6,3245.5,0.21578]
[1736678968283,0.21578,3245.5,3245.4,0.21578]
[1736678968484,0.37143901,3245.6,3245.5,0.21578]
[1736678971896,0.15566901,3245.6,3245.5,0.21578]
[1736678973800,0.68052,3246.4,3246.3,0.21572]
[1736678974003,0.21573,3246.3,3246.2,0.21573]
[1736678974405,0.68052,3246.4,3246.0,0.21574]
[1736678974592,0.68052,3246.4,3245.9,3.2078]
[1736678974903,0.68052,3246.4,3246.3,0.21572]
[1736678975702,0.69751,3246.5,3246.4,0.21572]
[1736678976104,0.21572,3246.4,3246.2,0.21573]
[1736678976301,0.21572,3246.4,3246.1,2.16699346]
[1736678976701,0.21572,3246.4,3246.2,0.21573]
[1736678976899,0.21572,3246.4,3246.3,0.21572]
[1736678978916,0.69751,3246.5,3246.4,0.21572]
[1736678979314,0.21571,3246.5,3246.4,0.21572]
[1736678979512,3.2078,3246.6,3246.5,0.21571]
[1736678979812,3.2078,3246.6,3246.5,0.65451]
[1736678980115,3.2078,3246.6,3246.5,1.10181]
[1736678981514,3.36398832,3246.6,3246.5,1.10181]
[1736678982017,3.36398832,3246.6,3246.5,0.66301]
[1736678984915,3.36398832,3246.6,3246.5,0.21571]
[1736678985121,4.03748832,3246.6,3246.5,0.21571]
[1736678987516,4.03748832,3246.6,3246.5,0.69731]
[1736678988621,3.82178832,3246.6,3246.5,0.69731]
[1736678989124,3.82178832,3246.6,3246.3,0.4688]
[1736678989340,0.68062,3246.5,3246.4,0.21571]
[1736678990221,1.16112,3246.5,3246.4,0.21571]
[1736678990618,0.21573,3246.3,3246.2,0.21572]
[1736678991124,1.16111,3246.5,3246.4,0.21572]
[1736678993127,0.21572,3246.4,3246.3,0.21572]
[1736678993317,0.9454,3246.5,3246.1,2.16699346]
[1736678993521,0.21573,3246.2,3246.1,0.21573]
[1736678994127,0.21573,3246.3,3246.2,0.21573]
[1736678996431,0.36617201,3246.3,3246.2,0.21573]
[1736678997230,0.15044201,3246.3,3246.2,0.21573]
[1736678998334,0.4462,3246.7,3246.1,2.16699346]
[1736678998532,0.21569,3246.9,3246.8,0.21569]
[1736678999627,0.4704,3247.0,3246.6,0.8997]
[1736678999829,0.68608,3247.0,3246.9,0.21568]
[1736679000026,0.4704,3247.0,3246.6,0.8997]
[1736679000222,0.4704,3247.0,3246.4,40.8]
[1736679000529,0.21571,3246.5,3246.4,0.21571]
[1736679001130,0.21571,3246.6,3246.4,0.21571]
[1736679001634,0.21571,3246.6,3246.5,0.21571]